bitfinex/quotes_BTCUSD_20250326
["timestamp","ask_amount","ask_price","bid_price","bid_amount"]
[1743016915445,0.290176,86428.0,86427.0,0.6121784]
[1743016915651,0.30829997,86428.0,86427.0,0.6121784]
[1743016920705,0.42255761,86428.0,86427.0,0.6121784]
[1743016921532,0.42255761,86428.0,86427.0,0.0113384]
[1743016923607,0.42255761,86428.0,86427.0,0.0063384]
[1743016923814,0.42255761,86428.0,86427.0,0.0103384]
[1743016924446,0.42255761,86428.0,86427.0,0.0043384]
[1743016924888,0.42255761,86428.0,86427.0,0.0093384]
[1743016925649,0.40443364,86428.0,86427.0,0.0093384]
[1743016927630,0.290176,86428.0,86427.0,0.0093384]
[1743016927835,0.231406,86428.0,86427.0,0.0093384]
[1743016928055,0.011569,86436.0,86427.0,0.02403644]
[1743016928261,0.00514276,86439.0,86427.0,0.02403644]
[1743016928724,0.00514276,86439.0,86430.0,0.01157]
[1743016928887,0.00514276,86439.0,86433.0,0.011569]
[1743016929088,0.00514276,86439.0,86431.0,0.11425764]
[1743016929289,0.00514276,86439.0,86434.0,0.231389]
[1743016929466,0.00514276,86439.0,86435.0,0.35721264]
[1743016929633,0.00514276,86439.0,86438.0,0.231379]
[1743016929837,0.00514276,86439.0,86438.0,0.34563664]
[1743016930045,0.00514276,86439.0,86438.0,0.47146228]
[1743016930558,0.00514276,86439.0,86438.0,0.22851528]
[1743016930777,0.00514276,86439.0,86438.0,0.23451528]
[1743016931831,0.00514276,86439.0,86438.0,0.47746228]
[1743016932038,0.00514276,86439.0,86438.0,0.48346228]
[1743016932196,0.00514276,86439.0,86438.0,0.56106228]
[1743016932415,0.00514276,86439.0,86438.0,1.29210313]
[1743016932616,0.00514276,86439.0,86438.0,0.65701528]
[1743016932811,0.00514276,86439.0,86438.0,0.86606]
[1743016933096,0.00514276,86439.0,86438.0,1.21169664]
[1743016933324,0.00514276,86439.0,86438.0,0.98031764]
[1743016934652,0.00514276,86439.0,86438.0,1.21169664]
[1743016934860,0.00514276,86439.0,86438.0,1.09457528]
[1743016935633,0.00514276,86439.0,86438.0,1.32595428]
[1743016935838,0.00514276,86439.0,86438.0,1.09457528]
[1743016936250,0.00514276,86439.0,86438.0,0.98031764]
[1743016937229,0.00514276,86439.0,86438.0,0.86606]
[1743016937470,0.02326299,86439.0,86438.0,0.86606]
[1743016940758,0.00514276,86439.0,86438.0,1.21169664]
[1743016940977,0.00514276,86439.0,86438.0,0.98031764]
[1743016941221,0.00514276,86439.0,86438.0,1.09457528]
[1743016942006,0.00514276,86439.0,86438.0,1.92679428]
[1743016942210,0.00514276,86439.0,86438.0,1.93836228]
[1743016942570,0.00514276,86439.0,86438.0,1.95290313]
[1743016943372,0.00514276,86439.0,86438.0,1.53640313]
[1743016943577,0.00514276,86439.0,86438.0,1.53040313]
[1743016943811,0.00514276,86439.0,86438.0,1.52440313]
[1743016943981,0.00514276,86439.0,86438.0,1.53640313]
[1743016944196,0.00514276,86439.0,86438.0,1.53040313]
[1743016944326,0.00514276,86439.0,86438.0,1.52440313]
[1743016944730,0.00514276,86439.0,86438.0,1.53040313]
[1743016944928,1e-08,86439.0,86438.0,1.53040313]
[1743016945333,1e-08,86439.0,86438.0,1.65930313]
[1743016946443,1e-08,86439.0,86438.0,1.51574313]
[1743016946636,1e-08,86439.0,86438.0,1.60706313]
[1743016946837,1e-08,86439.0,86438.0,1.60106313]
[1743016947088,1e-08,86439.0,86438.0,1.61306313]
[1743016947293,1e-08,86439.0,86438.0,1.59852228]
[1743016947705,1e-08,86439.0,86438.0,1.53636313]
[1743016948129,1e-08,86439.0,86438.0,1.52182228]
[1743016948510,1e-08,86439.0,86438.0,1.53636313]
[1743016949077,0.28009572,86480.0,86446.0,0.0755]
[1743016949276,0.0001692,86497.0,86478.0,0.73519264]
[1743016949483,0.0001692,86497.0,86478.0,1.39533264]
[1743016949686,0.0001692,86497.0,86478.0,1.48469422]
[1743016950301,0.0001692,86497.0,86478.0,1.34721422]
[1743016950515,0.0001692,86497.0,86478.0,1.48469422]
[1743016950710,0.0001692,86497.0,86478.0,1.49069422]
[1743016950913,0.00243103,86479.0,86478.0,1.49069422]
[1743016951117,0.00243103,86479.0,86478.0,1.50232266]
[1743016951318,0.00243103,86479.0,86478.0,1.50832266]
[1743016951885,0.00243103,86479.0,86478.0,1.51712958]
[1743016952286,0.00243103,86479.0,86478.0,1.184933]
[1743016952541,0.00243103,86479.0,86478.0,1.06544717]
[1743016952668,0.00243103,86479.0,86478.0,1.20292717]
[1743016952873,0.00243103,86479.0,86478.0,0.884933]
[1743016953077,0.24526403,86479.0,86478.0,0.61276]
[1743016953277,0.00243103,86479.0,86478.0,0.61276]
[1743016953697,0.00260023,86479.0,86478.0,0.61276]
[1743016953918,0.00260023,86479.0,86478.0,0.60076]
[1743016954125,0.00260023,86479.0,86478.0,0.60676]
[1743016954323,0.00260023,86479.0,86478.0,0.61276]
[1743016954926,0.00260023,86479.0,86478.0,0.60676]
[1743016955739,0.02071231,86479.0,86478.0,0.60676]
[1743016956323,0.02071231,86479.0,86478.0,0.61276]
[1743016956582,0.02071231,86479.0,86478.0,0.60676]
[1743016956806,0.02071231,86479.0,86478.0,0.855595]
[1743016957397,0.02071231,86479.0,86478.0,0.849595]
[1743016957684,0.02071231,86479.0,86478.0,0.855595]
[1743016958114,0.02071231,86479.0,86478.0,0.849595]
[1743016958315,0.02071231,86479.0,86478.0,0.96385264]
[1743016958469,0.02071231,86479.0,86478.0,1.38665113]
[1743016959004,0.02071231,86479.0,86478.0,1.39265113]
[1743016959572,0.02071231,86479.0,86478.0,1.39865113]
[1743016960629,0.00260023,86479.0,86478.0,1.39865113]
[1743016962514,0.00260023,86479.0,86478.0,1.42192896]
[1743016963719,0.00260023,86479.0,86478.0,1.40992896]
[1743016964001,0.00260023,86479.0,86478.0,1.41592896]
[1743016964757,0.00260023,86479.0,86478.0,1.17309396]
[1743016965058,0.00260023,86479.0,86478.0,0.6130982]
[1743016965663,0.00260023,86479.0,86478.0,1.27019084]
[1743016965866,0.00260023,86479.0,86478.0,1.27873169]
[1743016966585,0.00260023,86479.0,86478.0,1.28473169]
[1743016967214,0.00260023,86479.0,86478.0,1.27873169]
[1743016967390,0.00260023,86479.0,86478.0,1.39898933]
[1743016967830,0.002,86509.0,86493.0,0.242793]
[1743016968034,0.002,86509.0,86493.0,0.80899149]
[1743016968234,0.002,86509.0,86493.0,0.67159149]
[1743016968558,0.002,86509.0,86493.0,0.80899149]
[1743016968752,0.002,86509.0,86493.0,0.90175899]
[1743016969008,0.002,86509.0,86493.0,0.97349615]
[1743016969213,0.002,86509.0,86508.0,0.55729185]
[1743016969420,0.002,86509.0,86508.0,0.42879849]
[1743016969565,0.002,86509.0,86508.0,0.64308859]
[1743016969954,0.002,86509.0,86508.0,0.73688059]
[1743016970154,0.002,86509.0,86508.0,0.50568859]
[1743016970397,0.002,86509.0,86508.0,0.64308859]
[1743016970573,0.002,86509.0,86508.0,0.64313063]
[1743016971729,0.002,86509.0,86508.0,0.43740204]
[1743016971919,0.002,86509.0,86508.0,1.03784204]
[1743016972117,0.002,86509.0,86508.0,0.90048204]
[1743016972319,0.244748,86509.0,86508.0,0.73784204]
[1743016972537,0.244748,86509.0,86508.0,0.60648204]
[1743016973837,0.244748,86509.0,86508.0,0.60048204]
[1743016974003,0.244748,86509.0,86508.0,0.60648204]
[1743016975552,0.244748,86509.0,86508.0,0.60632204]
[1743016975715,0.244748,86509.0,86508.0,0.60032204]
[1743016975918,0.244748,86509.0,86508.0,0.60632204]
[1743016978286,0.244917,86509.0,86508.0,0.60632204]
[1743016980406,0.373917,86509.0,86508.0,0.60632204]
[1743016981549,0.373917,86509.0,86508.0,0.006]
[1743016982972,0.231206,86503.0,86500.0,0.0501]
[1743016983173,0.231206,86503.0,86500.0,0.05022617]
[1743016983766,0.231205,86503.0,86500.0,0.05022617]
[1743016983972,0.231206,86503.0,86500.0,0.05022617]
[1743016984224,0.050169,86509.0,86500.0,0.05622617]
[1743016985115,0.281359,86509.0,86500.0,0.05622617]
[1743016985525,0.002169,86509.0,86500.0,0.05022617]
[1743016985732,0.01810636,86507.0,86500.0,0.05022617]
[1743016985946,0.01810636,86507.0,86500.0,0.05522617]
[1743016986196,0.01810636,86507.0,86506.0,0.242756]
[1743016986398,0.01810636,86507.0,86506.0,0.380116]
[1743016986728,0.01810636,86507.0,86506.0,0.680116]
[1743016988025,0.01810636,86507.0,86506.0,0.79437364]
[1743016988430,0.01810636,86507.0,86506.0,0.80316112]
[1743016988666,0.01810636,86507.0,86506.0,0.91046947]
[1743016988870,0.01810636,86507.0,86506.0,0.91646947]
[1743016989486,0.0133013,86526.0,86525.0,0.542704]
[1743016989783,0.0133013,86526.0,86525.0,0.88851959]
[1743016989983,0.0133013,86526.0,86507.0,0.011559]
[1743016990189,0.0787,86525.0,86519.0,0.01193426]
[1743016990417,0.231149,86524.0,86512.0,0.3]
[1743016990612,0.309848,86525.0,86519.0,0.01151476]
[1743016990830,0.0787,86525.0,86514.0,0.3]
[1743016990971,0.02152398,86524.0,86514.0,0.3]
[1743016991168,0.02152398,86524.0,86515.0,0.13732]
[1743016991169,0.011557,86521.0,86515.0,0.13732]
[1743016991370,0.23116,86520.0,86515.0,0.13732]
[1743016991581,0.231168,86518.0,86515.0,0.13732]
[1743016991818,0.231168,86518.0,86506.0,0.31478748]
[1743016991819,0.231168,86517.0,86516.0,0.13732]
[1743016992467,0.242724,86518.0,86512.0,0.006]
[1743016992468,0.242737,86513.0,86512.0,0.006]
[1743016992899,0.231184,86511.0,86510.0,0.13732]
[1743016993498,0.231182,86512.0,86510.0,0.13732]
[1743016993703,0.231177,86514.0,86510.0,0.13732]
[1743016993971,0.24274,86512.0,86506.0,0.000338]
[1743016994109,0.011559,86507.0,86506.0,0.000338]
[1743016994317,0.231192,86508.0,86506.0,0.137658]
[1743016994561,0.242754,86507.0,86506.0,0.137658]
[1743016994965,0.242754,86507.0,86506.0,0.000338]
[1743016995395,0.323954,86507.0,86506.0,0.000338]
[1743016996474,0.372554,86507.0,86506.0,0.006338]
[1743016996905,0.59271179,86507.0,86506.0,0.006338]
[1743016997077,0.50074087,86507.0,86506.0,0.000338]
[1743016997420,0.50074087,86507.0,86506.0,0.004338]
[1743016997719,0.247756,86506.0,86505.0,1e-06]
[1743016997963,0.48260151,86506.0,86505.0,1e-06]
[1743016998177,0.59685915,86506.0,86505.0,1e-06]
[1743016998349,0.89685915,86506.0,86505.0,1e-06]
[1743016998551,0.242821,86483.0,86482.0,0.10370956]
[1743016998759,0.373821,86483.0,86482.0,0.10383565]
[1743016999511,0.48550369,86483.0,86482.0,0.10383565]
[1743017000138,0.373821,86483.0,86482.0,0.10383565]
[1743017000343,0.291921,86483.0,86482.0,0.10383565]
[1743017000506,0.31003358,86483.0,86482.0,0.00512609]
[1743017002718,0.40360369,86483.0,86482.0,0.00512609]
[1743017002922,0.242833,86479.0,86478.0,2.9e-07]
[1743017003142,0.48128311,86479.0,86478.0,3.8e-07]
[1743017003342,0.48628311,86479.0,86478.0,3.8e-07]
[1743017003545,0.60054075,86479.0,86478.0,3.8e-07]
[1743017004956,0.90054075,86479.0,86478.0,3.8e-07]
[1743017005317,0.242939,86441.0,86440.0,0.60056]
[1743017005544,0.242939,86441.0,86440.0,0.60099103]
[1743017005761,0.231371,86441.0,86440.0,0.60099103]
[1743017006883,0.232371,86441.0,86440.0,0.60599103]
[1743017007089,0.25048954,86441.0,86440.0,0.60599103]
[1743017008462,0.01911854,86441.0,86440.0,0.60599103]
[1743017010232,0.01911854,86441.0,86440.0,1.44831667]
[1743017010456,0.001,86441.0,86440.0,1.63768362]
[1743017010877,0.001,86441.0,86440.0,1.53905752]
[1743017011204,0.001,86441.0,86440.0,1.77043152]
[1743017014511,0.001,86441.0,86440.0,1.90779152]
[1743017014951,0.001,86441.0,86440.0,1.82002352]
[1743017015109,0.001,86441.0,86440.0,1.83159152]
[1743017015518,0.001,86441.0,86440.0,1.94584916]
[1743017016716,0.001,86441.0,86440.0,1.94618736]
[1743017021868,0.01811545,86461.0,86455.0,0.242898]
[1743017022078,0.01811545,86461.0,86456.0,0.13732]
[1743017022683,0.231312,86463.0,86456.0,0.13732]
[1743017022922,0.011565,86463.0,86456.0,0.13732]
[1743017023096,0.231315,86462.0,86456.0,0.13732]
[1743017023296,0.231326,86458.0,86456.0,0.13732]
[1743017023701,0.231317,86462.0,86456.0,0.13732]
[1743017023904,0.231317,86462.0,86456.0,0.14332]
[1743017024533,0.231319,86461.0,86457.0,0.60072]
[1743017024994,0.231309,86465.0,86457.0,0.60072]
[1743017025216,0.011565,86467.0,86457.0,0.62430352]
[1743017025431,0.231315,86463.0,86457.0,0.62430352]
[1743017025634,0.231309,86465.0,86457.0,0.62430352]
[1743017025851,0.01811522,86461.0,86458.0,0.13732]
[1743017026883,0.01811522,86461.0,86459.0,0.11425764]
[1743017027480,0.24943522,86461.0,86459.0,0.11425764]
[1743017027683,0.01811522,86461.0,86459.0,0.11425764]
[1743017028834,0.01811522,86461.0,86459.0,0.12025764]
[1743017029070,0.01811522,86461.0,86459.0,0.006]
[1743017029901,0.23132,86460.0,86459.0,0.006]
[1743017030213,0.24943422,86461.0,86459.0,0.006]
[1743017030419,0.01811522,86461.0,86459.0,0.006]
[1743017030876,0.24943422,86461.0,86459.0,0.006]
[1743017031064,0.242886,86460.0,86459.0,0.006]
[1743017031682,0.242886,86460.0,86457.0,0.60072]
[1743017031683,0.289292,86458.0,86457.0,0.60072]
[1743017033042,0.289292,86458.0,86457.0,0.60672]
[1743017034365,0.40264647,86458.0,86457.0,0.60672]
[1743017034787,0.40264647,86458.0,86457.0,0.60072]
[1743017034949,0.40264647,86458.0,86457.0,0.60472]
[1743017035467,0.40264647,86458.0,86457.0,0.60072]
[1743017035691,0.42076406,86458.0,86457.0,0.60072]
[1743017035850,0.42076406,86458.0,86457.0,0.60372]
[1743017036408,0.5350217,86458.0,86457.0,0.60372]
[1743017036613,0.6153217,86458.0,86457.0,0.003]
[1743017037247,0.6153217,86458.0,86457.0,1e-06]
[1743017038177,0.7576417,86458.0,86457.0,1e-06]
[1743017038379,0.369639,86441.0,86440.0,0.00076923]
[1743017038589,0.39112914,86441.0,86440.0,0.00076923]
[1743017038724,0.369639,86441.0,86440.0,0.00076923]
[1743017038908,0.48389664,86441.0,86440.0,0.00076923]
[1743017039564,0.50201861,86441.0,86440.0,0.00476923]
[1743017040890,0.50201861,86441.0,86440.0,0.00076923]
[1743017041267,0.50201861,86441.0,86440.0,0.00376923]
[1743017041517,0.61627625,86441.0,86440.0,0.00376923]
[1743017042087,0.50201861,86441.0,86440.0,0.00376923]
[1743017042783,0.48389664,86441.0,86440.0,0.00376923]
[1743017045788,0.50201886,86441.0,86440.0,2.3e-07]
[1743017046000,0.80701886,86441.0,86440.0,2.3e-07]
[1743017047049,0.80701886,86441.0,86427.0,0.0003384]
[1743017047050,0.292676,86428.0,86427.0,6.3e-07]
[1743017047251,0.48843364,86428.0,86427.0,4.7e-07]
[1743017048072,0.48343364,86428.0,86427.0,4.7e-07]
[1743017048280,0.50155988,86428.0,86427.0,4.7e-07]
[1743017048481,0.52305002,86428.0,86427.0,4.7e-07]
[1743017049053,0.50155988,86428.0,86427.0,4.7e-07]
[1743017052406,0.42505988,86428.0,86427.0,4.7e-07]
[1743017052591,0.242976,86428.0,86427.0,4.7e-07]
[1743017052994,0.242976,86428.0,86427.0,0.00033927]
[1743017055283,0.242976,86428.0,86427.0,0.00233927]
[1743017057535,0.26110088,86428.0,86427.0,0.00233927]
[1743017060796,0.242976,86428.0,86427.0,0.00233927]
[1743017061002,0.26110112,86428.0,86427.0,0.00233927]
[1743017061867,0.26110112,86428.0,86427.0,0.00033927]
[1743017062786,0.242976,86428.0,86427.0,0.00033927]
[1743017063009,0.242976,86428.0,86427.0,0.00133927]
[1743017064739,0.231403,86429.0,86427.0,0.00133927]
[1743017064937,0.2431454,86428.0,86427.0,0.00133927]
[1743017065896,0.26126889,86428.0,86427.0,0.00133927]
[1743017066475,0.30866889,86428.0,86427.0,0.00033927]
[1743017068405,0.42292653,86428.0,86427.0,0.00033927]
[1743017068625,0.242993,86422.0,86421.0,7e-08]
[1743017068985,0.35725064,86422.0,86421.0,0.00012608]
[1743017070170,0.35725064,86422.0,86421.0,0.00212608]
[1743017071361,0.242993,86422.0,86421.0,0.00212608]
[1743017075248,0.34378754,86422.0,86421.0,0.00212608]
[1743017075483,0.43235064,86422.0,86421.0,0.00212608]
[1743017076352,0.242993,86422.0,86421.0,0.00212608]
[1743017078022,0.242993,86422.0,86421.0,0.00512608]
[1743017078380,0.011571,86420.0,86419.0,0.05905388]
[1743017078600,0.011571,86420.0,86400.0,0.0003384]
[1743017078601,0.243015,86414.0,86400.0,0.0003384]
[1743017078900,0.243015,86414.0,86413.0,0.00046333]
[1743017079498,0.26114224,86414.0,86413.0,0.00046333]
[1743017079958,0.26114224,86414.0,86413.0,0.00246333]
[1743017080348,0.26114224,86414.0,86413.0,0.00046333]
[1743017081253,0.26114224,86414.0,86413.0,0.00346333]
[1743017081596,0.26114224,86414.0,86413.0,0.00446333]
[1743017082101,0.26114224,86414.0,86413.0,0.00346333]
[1743017082511,0.26114224,86414.0,86413.0,0.00446333]
[1743017082714,0.243015,86414.0,86413.0,0.00446333]
[1743017083369,0.3390616,86414.0,86413.0,0.00446333]
[1743017083986,0.243015,86414.0,86413.0,0.00446333]
[1743017085796,0.26114187,86414.0,86413.0,0.00446333]
[1743017087570,0.45309951,86414.0,86413.0,0.00446333]
[1743017087766,0.49839951,86414.0,86413.0,0.00446333]
[1743017088481,0.49839951,86414.0,86411.0,3.3e-07]
[1743017088482,0.243021,86412.0,86411.0,3.3e-07]
[1743017088666,0.47153628,86412.0,86411.0,1.5e-07]
[1743017089207,0.47153628,86412.0,86395.0,0.000338]
[1743017089208,0.011574,86396.0,86395.0,5.5e-07]
[1743017089458,0.243077,86392.0,86391.0,5.5e-07]
[1743017089663,0.35733464,86392.0,86391.0,3.6e-07]
[1743017089868,0.37882478,86392.0,86391.0,3.6e-07]
[1743017090502,0.38382478,86392.0,86391.0,3.6e-07]
[1743017090616,0.42912478,86392.0,86391.0,3.6e-07]
[1743017091074,0.243105,86382.0,86373.0,0.60112]
[1743017091296,0.35736264,86382.0,86381.0,0.00204181]
[1743017091719,0.37549657,86382.0,86381.0,0.00204181]
[1743017092686,0.35736264,86382.0,86381.0,0.00204181]
[1743017093492,0.243105,86382.0,86381.0,0.00204181]
[1743017093914,0.3391874,86382.0,86381.0,0.00204181]
[1743017094307,0.3391874,86382.0,86381.0,0.00504181]
[1743017094911,0.45344504,86382.0,86381.0,0.00504181]
[1743017095287,0.45344504,86382.0,86381.0,0.00204181]
[1743017095726,0.45344504,86382.0,86381.0,0.00404181]
[1743017095930,0.53114504,86382.0,86381.0,8.1e-07]
[1743017096539,0.43506264,86382.0,86381.0,8.1e-07]
[1743017097321,0.243128,86374.0,86373.0,0.60112]
[1743017097554,0.243128,86374.0,86373.0,0.60116191]
[1743017098098,0.26126294,86374.0,86373.0,0.60116191]
[1743017098520,0.26126294,86374.0,86373.0,0.60216191]
[1743017100606,0.01813494,86374.0,86373.0,0.60216191]
[1743017100805,0.24968594,86374.0,86373.0,0.60216191]
[1743017101247,0.26126294,86374.0,86373.0,0.60216191]
[1743017103363,0.26126294,86374.0,86373.0,0.67836191]
[1743017103974,0.26126294,86374.0,86373.0,0.67853131]
[1743017104381,0.01813494,86374.0,86373.0,0.67853131]
[1743017104786,0.231548,86376.0,86373.0,0.67853131]
[1743017104995,0.243122,86376.0,86373.0,0.67853131]
[1743017105274,0.243128,86374.0,86373.0,0.67753131]
[1743017105387,0.24245688,86374.0,86373.0,0.60133131]
[1743017105600,0.24245688,86374.0,86373.0,0.60233131]
[1743017106955,0.24245688,86374.0,86373.0,0.60433131]
[1743017107593,0.24345688,86374.0,86373.0,0.60733131]
[1743017107807,0.24345688,86374.0,86373.0,0.60433131]
[1743017108019,0.34470981,86374.0,86373.0,0.60933131]
[1743017108223,0.24445688,86374.0,86373.0,0.60933131]
[1743017108632,0.35871452,86374.0,86373.0,0.60933131]
[1743017108803,0.35771452,86374.0,86373.0,0.00321131]
[1743017109010,0.46939321,86374.0,86373.0,0.00321131]
[1743017109192,0.46839321,86374.0,86373.0,0.00021131]
[1743017109387,0.46839321,86374.0,86373.0,0.00321131]
[1743017109388,0.35771452,86374.0,86373.0,0.00321131]
[1743017109788,0.35671452,86374.0,86373.0,0.00021131]
[1743017110011,0.35671452,86374.0,86373.0,0.00121131]
[1743017110222,0.35671452,86374.0,86373.0,0.00421131]
[1743017110789,0.35671452,86374.0,86373.0,0.00121131]
[1743017112022,0.46829321,86374.0,86373.0,0.00121131]
[1743017112222,0.46829321,86374.0,86373.0,3.1e-07]
[1743017112826,0.243136,86371.0,86370.0,0.0003386]
[1743017113018,0.35739364,86371.0,86370.0,0.00044753]
[1743017114184,0.35739364,86371.0,86370.0,0.00144753]
[1743017114946,0.37884231,86371.0,86370.0,0.00144753]
[1743017115601,0.26458467,86371.0,86370.0,0.00144753]
[1743017115715,0.28272127,86371.0,86370.0,0.00144753]
[1743017116395,0.39697891,86371.0,86370.0,0.00144753]
[1743017116613,0.49928052,86371.0,86370.0,0.00144753]
[1743017116817,0.57778052,86371.0,86370.0,5.3e-07]
[1743017117161,0.60163185,86371.0,86370.0,5.3e-07]
[1743017117360,0.90163185,86371.0,86370.0,5.3e-07]
[1743017117557,0.91511669,86371.0,86370.0,5.3e-07]
[1743017117760,0.91975969,86371.0,86370.0,5.3e-07]
[1743017117979,0.368184,86354.0,86353.0,5.3e-07]
[1743017118182,0.48244164,86354.0,86353.0,4.706e-05]
[1743017118817,0.50058123,86354.0,86353.0,4.706e-05]
[1743017119624,0.50058123,86354.0,86353.0,0.00104706]
[1743017120245,0.42528123,86354.0,86353.0,0.00104706]
[1743017120628,0.42528123,86354.0,86351.0,6e-08]
[1743017120629,0.54319,86352.0,86351.0,6e-08]
[1743017120828,0.54319,86352.0,86351.0,0.00012653]
[1743017120829,0.90894528,86352.0,86351.0,0.00012653]
[1743017121587,0.65744764,86352.0,86351.0,5.3e-07]
[1743017123660,0.65744764,86352.0,86340.0,7.3e-07]
[1743017123661,0.24322,86341.0,86340.0,7.3e-07]
[1743017123859,0.35747764,86341.0,86340.0,2.3e-07]
[1743017124284,0.37892299,86341.0,86340.0,2.3e-07]
[1743017125317,0.37892299,86341.0,86340.0,0.00100023]
[1743017125511,0.37892299,86341.0,86340.0,0.001]
[1743017125714,0.37892299,86341.0,86340.0,2.3e-07]
[1743017126449,0.39706688,86341.0,86340.0,2.3e-07]
[1743017128132,0.39706688,86341.0,86340.0,0.00016983]
[1743017128133,0.28280924,86341.0,86340.0,0.00016983]
[1743017130438,0.26136389,86341.0,86340.0,0.00016983]
[1743017131515,0.35930638,86341.0,86340.0,0.00016983]
[1743017131920,0.26136389,86341.0,86340.0,0.00016983]
[1743017132683,0.39703947,86341.0,86340.0,0.00016983]
[1743017132821,0.37889558,86341.0,86340.0,0.00016983]
[1743017133428,0.26463794,86341.0,86340.0,0.00016983]
[1743017133611,0.37889558,86341.0,86340.0,8.3e-07]
[1743017133965,0.37889558,86341.0,86336.0,0.0003386]
[1743017133966,0.325932,86337.0,86336.0,4.3e-07]
[1743017134172,0.44018964,86337.0,86336.0,0.00012724]
[1743017135146,0.243254,86330.0,86326.0,4.4e-07]
[1743017135433,0.370174,86322.0,86321.0,2.8e-07]
[1743017135647,0.48443164,86322.0,86321.0,2.8e-07]
[1743017135849,0.243297,86314.0,86313.0,4.2e-07]
[1743017136146,0.35755464,86314.0,86313.0,0.00012776]
[1743017136727,0.35755464,86314.0,86313.0,7.6e-07]
[1743017136929,0.44315625,86314.0,86313.0,7.6e-07]
[1743017137298,0.48272397,86314.0,86313.0,7.6e-07]
[1743017138526,0.243322,86305.0,86304.0,9.6e-07]
[1743017138749,0.35757964,86305.0,86304.0,0.0001283]
[1743017139074,0.243351,86295.0,86291.0,7e-07]
[1743017139275,0.243359,86292.0,86291.0,0.00012796]
[1743017139480,0.35761664,86292.0,86291.0,0.00012796]
[1743017140764,0.3757718,86292.0,86291.0,0.00012796]
[1743017142579,0.3767718,86292.0,86291.0,0.00012796]
[1743017142782,0.35861664,86292.0,86291.0,0.00012796]
[1743017142999,0.40876281,86292.0,86291.0,0.00029756]
[1743017143604,0.43931664,86292.0,86291.0,5.6e-07]
[1743017145452,0.44031664,86292.0,86291.0,5.6e-07]
[1743017145680,0.44031664,86292.0,86271.0,0.60172]
[1743017145681,0.289981,86284.0,86283.0,4.6e-07]
[1743017145806,0.40423864,86284.0,86283.0,0.00012772]
[1743017146195,0.35763864,86284.0,86283.0,0.00012772]
[1743017147479,0.244381,86284.0,86283.0,0.00012772]
[1743017148393,0.35963864,86284.0,86283.0,0.00012772]
[1743017149055,0.35863864,86284.0,86283.0,0.00012772]
[1743017149251,0.35763864,86284.0,86283.0,0.00012772]
[1743017150317,0.35863864,86284.0,86283.0,0.00012772]
[1743017151161,0.244381,86284.0,86283.0,0.00012772]
[1743017152162,0.3396728,86284.0,86283.0,0.00012772]
[1743017152563,0.243381,86284.0,86283.0,0.00012772]
[1743017155847,0.26153642,86284.0,86283.0,0.00012772]
[1743017156567,0.26153642,86284.0,86283.0,0.07992772]
[1743017158438,0.01815542,86284.0,86283.0,0.07992772]
[1743017158836,0.01815542,86284.0,86283.0,0.08092772]
[1743017159039,0.01815542,86284.0,86283.0,0.31272272]
[1743017159248,0.01815542,86284.0,86283.0,0.32431172]
[1743017159494,0.01815542,86284.0,86283.0,0.08092772]
[1743017159716,0.01815542,86284.0,86283.0,0.21716772]
[1743017159920,0.25094742,86284.0,86283.0,0.21816772]
[1743017160169,0.26253642,86284.0,86283.0,0.21816772]
[1743017160322,0.25194742,86284.0,86283.0,0.21816772]
[1743017160570,0.02015542,86284.0,86283.0,0.21816772]
[1743017160740,0.25194742,86284.0,86283.0,0.21816772]
[1743017162046,0.002,86284.0,86283.0,0.21816772]
[1743017162246,0.233792,86284.0,86283.0,0.21816772]
[1743017162890,0.002,86284.0,86283.0,0.21816772]
[1743017163323,0.002,86284.0,86283.0,0.82877238]
[1743017163476,0.002,86284.0,86283.0,0.98982448]
[1743017163881,0.002,86284.0,86283.0,1.03712448]
[1743017164823,0.001,86284.0,86283.0,1.03712448]
[1743017165024,0.231738,86305.0,86291.0,0.619661]
[1743017165248,0.231744,86302.0,86291.0,0.85809889]
[1743017165405,0.231749,86300.0,86291.0,0.85709889]
[1743017165990,0.231749,86300.0,86291.0,0.85609889]
[1743017166176,0.011587,86302.0,86291.0,0.74445949]
[1743017166374,0.231743,86303.0,86291.0,0.74445949]
[1743017166613,0.01814955,86298.0,86291.0,0.74445949]
[1743017167266,0.01814955,86298.0,86291.0,0.75045949]
[1743017168165,0.0013394,86292.0,86291.0,0.75545949]
[1743017168342,0.0013394,86292.0,86291.0,0.79905949]
[1743017168534,0.0003394,86292.0,86291.0,0.79405949]
[1743017168719,0.0013394,86292.0,86291.0,0.92506906]
[1743017168915,0.0023394,86292.0,86291.0,0.93506906]
[1743017169234,0.231683,86325.0,86321.0,0.0792]
[1743017169431,0.231685,86324.0,86322.0,0.85333764]
[1743017169928,0.011584,86323.0,86322.0,0.85333764]
[1743017170131,0.011584,86323.0,86322.0,0.60188]
[1743017170534,0.011584,86323.0,86322.0,0.60200726]
[1743017171373,0.243271,86323.0,86322.0,0.60200726]
[1743017171997,0.243271,86323.0,86322.0,0.60500726]
[1743017172196,0.243271,86323.0,86322.0,0.60600726]
[1743017172541,0.243271,86323.0,86322.0,0.60300726]
[1743017172914,0.243271,86323.0,86322.0,0.60500726]
[1743017175771,0.26141764,86323.0,86322.0,0.60500726]
[1743017178320,0.26175704,86323.0,86322.0,0.60500726]
[1743017180799,0.2436104,86323.0,86322.0,0.60500726]
[1743017181299,0.2617559,86323.0,86322.0,0.60500726]
[1743017182007,0.0184849,86323.0,86322.0,0.84828126]
[1743017182226,0.0003394,86323.0,86322.0,0.9625389]
[1743017182377,0.0003394,86323.0,86322.0,0.9509549]
[1743017182786,0.2436104,86323.0,86322.0,0.60500726]
[1743017184597,0.0003394,86323.0,86322.0,0.60200726]
[1743017184797,0.2320264,86323.0,86322.0,0.60500726]
[1743017184997,0.2436104,86323.0,86322.0,0.60800726]
[1743017185266,0.26175609,86323.0,86322.0,0.60800726]
[1743017185439,0.26175609,86323.0,86322.0,0.60500726]
[1743017185648,0.26175609,86323.0,86322.0,0.60800726]
[1743017187052,0.01848509,86323.0,86322.0,0.60800726]
[1743017187261,0.01848509,86323.0,86322.0,0.9655389]
[1743017187453,0.01848509,86323.0,86322.0,1.08763062]
[1743017187645,0.01848509,86323.0,86322.0,0.84435662]
[1743017187932,0.26175609,86323.0,86322.0,0.60800726]
[1743017188240,0.26175609,86323.0,86322.0,0.60500726]
[1743017188443,0.26175609,86323.0,86322.0,0.60700726]
[1743017188806,0.26175609,86323.0,86322.0,0.61200726]
[1743017189002,0.26175609,86323.0,86322.0,0.63464258]
[1743017189414,0.01848509,86323.0,86322.0,0.63464258]
[1743017189610,0.25017209,86323.0,86322.0,0.63464258]
[1743017189893,0.01848509,86323.0,86322.0,0.63464258]